bitfinex/quotes_BTCUSD_20250110
["timestamp","ask_amount","ask_price","bid_price","bid_amount"]
[1736479027571,0.213675,93600.0,93591.0,0.03569853]
[1736479027778,0.213675,93600.0,93591.0,0.00343853]
[1736479028182,0.213675,93600.0,93591.0,0.00243853]
[1736479029979,0.002,93592.0,93591.0,0.00243853]
[1736479030245,0.214675,93600.0,93591.0,0.00243853]
[1736479030686,0.217675,93600.0,93591.0,0.00243853]
[1736479030900,0.216675,93600.0,93591.0,0.00243853]
[1736479031339,0.216675,93600.0,93593.0,0.3226]
[1736479031805,0.003,93600.0,93594.0,0.00243825]
[1736479032036,0.01194324,93609.0,93595.0,0.213686]
[1736479032254,0.213645,93614.0,93600.0,0.213674]
[1736479032776,0.213645,93614.0,93601.0,0.00350207]
[1736479032895,0.01295025,93616.0,93602.0,0.42734]
[1736479033148,0.01295025,93616.0,93603.0,0.00106818]
[1736479033407,0.21364,93615.0,93603.0,0.00350181]
[1736479033670,0.009,93614.0,93603.0,0.00350181]
[1736479033954,0.003,93614.0,93603.0,0.00350181]
[1736479034312,0.213664,93605.0,93603.0,0.00243363]
[1736479034519,0.2729,93604.0,93603.0,0.00243363]
[1736479034683,0.0758,93603.0,93571.0,0.0001704]
[1736479034883,0.10968,93615.0,93571.0,0.0001704]
[1736479034884,0.0758,93580.0,93576.0,0.00242398]
[1736479035080,0.1,93574.0,93571.0,9.2e-07]
[1736479035330,0.1,93574.0,93562.0,8.53e-05]
[1736479035331,0.023,93571.0,93562.0,8.53e-05]
[1736479035533,0.466359,93563.0,93562.0,8.53e-05]
[1736479035685,0.15,93562.0,93553.0,8.52e-05]
[1736479035893,0.15,93562.0,93538.0,8.52e-05]
[1736479035894,0.51238,93554.0,93538.0,8.52e-05]
[1736479036099,0.466414,93539.0,93538.0,8.52e-05]
[1736479036302,0.466414,93539.0,93506.0,8.52e-05]
[1736479036303,0.363846,93525.0,93506.0,8.52e-05]
[1736479036524,0.443446,93525.0,93506.0,8.52e-05]
[1736479036726,0.48171243,93525.0,93524.0,0.0594408]
[1736479036922,0.65364255,93525.0,93524.0,0.0594408]
[1736479037145,0.48231955,93525.0,93524.0,0.0594408]
[1736479037465,0.363846,93525.0,93524.0,0.0594408]
[1736479037668,0.213819,93537.0,93524.0,0.0594408]
[1736479037876,0.427639,93537.0,93524.0,0.0594408]
[1736479038034,0.213819,93537.0,93524.0,0.0594408]
[1736479038234,0.21382,93537.0,93524.0,0.0594408]
[1736479038487,0.004,93525.0,93524.0,0.0594408]
[1736479038658,0.004,93525.0,93524.0,0.06168438]
[1736479038857,0.213793,93548.0,93525.0,0.290746]
[1736479039088,0.009,93537.0,93526.0,0.00331248]
[1736479039281,0.0427579,93547.0,93526.0,0.00331248]
[1736479039282,0.1927579,93547.0,93526.0,0.00331248]
[1736479039456,0.213769,93559.0,93528.0,0.5419]
[1736479039657,0.213763,93562.0,93543.0,0.213803]
[1736479039931,0.213763,93562.0,93544.0,0.00228574]
[1736479040333,0.0213763,93561.0,93543.0,0.213803]
[1736479040565,0.0213763,93561.0,93545.0,0.00228565]
[1736479040768,0.0213763,93561.0,93544.0,0.00228574]
[1736479040970,0.0213763,93561.0,93540.0,0.00106891]
[1736479041200,0.02351393,93560.0,93545.0,0.00228565]
[1736479041407,0.002,93562.0,93546.0,0.42866489]
[1736479041607,0.002,93562.0,93552.0,0.213783]
[1736479041812,0.002,93562.0,93546.0,0.21608355]
[1736479042014,0.002,93562.0,93553.0,0.00228488]
[1736479042015,0.011,93562.0,93553.0,0.00228488]
[1736479042190,0.002,93562.0,93546.0,0.213798]
[1736479042555,0.15,93567.0,93548.0,0.213793]
[1736479042771,0.001,93561.0,93550.0,0.427578]
[1736479042968,0.001,93561.0,93551.0,0.32366883]
[1736479043195,0.239277,93573.0,93552.0,0.0827]
[1736479043395,0.213737,93573.0,93553.0,0.00106877]
[1736479043713,0.15,93572.0,93553.0,0.00335365]
[1736479044699,0.002,93567.0,93553.0,0.06560317]
[1736479044910,0.002,93567.0,93562.0,0.21376]
[1736479045158,0.001,93573.0,93563.0,0.00231372]
[1736479045582,0.003,93572.0,93563.0,0.00231372]
[1736479045793,0.001,93573.0,93563.0,0.00231372]
[1736479046006,0.001,93573.0,93563.0,0.02392109]
[1736479046172,0.15,93576.0,93564.0,0.3226]
[1736479046377,0.15,93576.0,93564.0,0.32491363]
[1736479046575,0.001,93572.0,93564.0,0.32491363]
[1736479046972,0.15,93577.0,93564.0,0.32491363]
[1736479047568,0.15,93577.0,93566.0,0.3226]
[1736479047811,0.21369,93594.0,93573.0,0.3226]
[1736479048250,0.213703,93588.0,93575.0,0.3226]
[1736479048584,0.213703,93588.0,93576.0,0.00230774]
[1736479048916,0.15,93592.0,93576.0,0.00230774]
[1736479049125,0.15,93592.0,93577.0,0.213727]
[1736479049556,0.15,93592.0,93578.0,0.00230755]
[1736479049956,0.15,93596.0,93578.0,0.00230755]
[1736479050213,0.006,93588.0,93579.0,0.213723]
[1736479050383,0.15,93596.0,93579.0,0.213723]
[1736479050610,0.15,93594.0,93580.0,0.00230736]
[1736479050815,0.15,93592.0,93580.0,0.00230736]
[1736479050937,0.15,93592.0,93576.0,0.00106848]
[1736479051189,0.15,93592.0,93581.0,0.00230726]
[1736479051411,0.2077374,93592.0,93575.0,0.3226]
[1736479051648,0.15,93592.0,93575.0,0.3226]
[1736479051881,0.151,93592.0,93577.0,0.0823]
[1736479052104,0.213661,93606.0,93588.0,0.213701]
[1736479052329,0.001,93592.0,93589.0,0.00227003]
[1736479052868,0.15,93594.0,93579.0,0.3226]
[1736479053017,0.001,93592.0,93580.0,0.21372]
[1736479053249,0.15,93594.0,93580.0,0.21599089]
[1736479053691,0.001,93592.0,93581.0,0.00106847]
[1736479053914,0.001,93592.0,93582.0,0.0022707]
[1736479054113,0.001,93592.0,93583.0,0.2147824]
[1736479054324,0.001,93592.0,93585.0,0.213709]
[1736479054520,0.001,93592.0,93586.0,0.0010684]
[1736479054940,0.001,93592.0,93587.0,0.21597422]
[1736479055146,0.15,93605.0,93589.0,0.2137]
[1736479055337,0.15,93605.0,93590.0,0.3226]
[1736479055505,0.15,93605.0,93590.0,0.3248655]
[1736479055704,0.363664,93605.0,93590.0,0.3248655]
[1736479055925,0.42141286,93605.0,93590.0,0.3248655]
[1736479056331,0.63907686,93605.0,93590.0,0.3226]
[1736479056746,0.63507686,93605.0,93591.0,0.0022654]
[1736479056947,0.213675,93601.0,93591.0,0.0022654]
[1736479057169,0.367664,93605.0,93591.0,0.0022654]
[1736479057589,0.367664,93605.0,93590.0,0.3226]
[1736479058002,0.004,93605.0,93592.0,0.3226]
[1736479058125,0.004,93605.0,93601.0,0.213672]
[1736479058321,0.005,93605.0,93602.0,0.00333075]
[1736479058530,0.001,93605.0,93603.0,0.213668]
[1736479058735,0.0001706,93610.0,93605.0,0.427326]
[1736479058948,0.0001706,93610.0,93607.0,0.8645]
[1736479059147,0.0001706,93610.0,93609.0,0.213654]
[1736479059587,0.0001706,93610.0,93609.0,0.2159098]
[1736479059788,0.0001706,93610.0,93609.0,0.42289399]
[1736479059991,0.00066072,93610.0,93609.0,0.50149399]
[1736479060636,0.00066072,93610.0,93609.0,1.38899399]
[1736479061748,0.00166072,93610.0,93609.0,1.38630956]
[1736479062178,0.00066072,93610.0,93609.0,1.38630956]
[1736479062391,0.00166072,93610.0,93609.0,1.39230956]
[1736479062765,0.00166072,93610.0,93609.0,1.36930956]
[1736479063401,0.00166072,93610.0,93609.0,1.26930956]
[1736479063599,0.00166072,93610.0,93609.0,1.27698956]
[1736479064081,0.00166072,93610.0,93609.0,1.26930956]
[1736479064803,0.00066072,93610.0,93609.0,1.26330956]
[1736479065245,0.00166072,93610.0,93609.0,1.26530956]
[1736479065442,0.00166072,93610.0,93609.0,1.26830956]
[1736479065873,0.00166072,93610.0,93609.0,1.37260932]
[1736479067346,0.00166072,93610.0,93609.0,1.36960932]
[1736479067520,0.00166072,93610.0,93609.0,1.37360932]
[1736479067722,0.00166072,93610.0,93609.0,1.29230956]
[1736479068344,0.00066072,93610.0,93609.0,1.28630956]
[1736479068691,0.00166072,93610.0,93609.0,1.29030956]
[1736479069095,0.00166072,93610.0,93609.0,1.28830956]
[1736479069269,0.00166072,93610.0,93609.0,1.30337489]
[1736479069475,0.00066072,93610.0,93609.0,1.30137489]
[1736479069861,0.00166072,93610.0,93609.0,1.30337489]
[1736479070270,0.00166072,93610.0,93609.0,1.60767465]
[1736479070504,7.2e-07,93610.0,93609.0,1.61067465]
[1736479071117,7.2e-07,93610.0,93609.0,1.60767465]
[1736479071495,0.0001704,93638.0,93637.0,0.3226]
[1736479071695,0.0001704,93638.0,93637.0,0.32487686]
[1736479072283,0.0001704,93638.0,93637.0,0.42917662]
[1736479075053,0.0001704,93638.0,93637.0,0.43017662]
[1736479075266,0.0001704,93638.0,93637.0,0.42917662]
[1736479075601,0.0001704,93638.0,93637.0,0.43317662]
[1736479075805,0.0001704,93638.0,93637.0,0.43117662]
[1736479076182,0.0001704,93638.0,93637.0,0.97307662]
[1736479076935,0.0001704,93638.0,93637.0,0.97707662]
[1736479077216,0.0001704,93638.0,93637.0,0.87277686]
[1736479077430,0.0001704,93638.0,93637.0,0.87077686]
[1736479077771,0.0001704,93638.0,93637.0,0.8908618]
[1736479077968,0.0001704,93638.0,93637.0,0.99116156]
[1736479078460,0.0001704,93638.0,93637.0,0.99316156]
[1736479078656,0.0001704,93638.0,93637.0,0.99216156]
[1736479079092,0.0001704,93638.0,93637.0,0.99316156]
[1736479079271,0.0001704,93638.0,93637.0,0.97107662]
[1736479079503,0.0001704,93638.0,93637.0,0.97407662]
[1736479079808,0.0011704,93638.0,93637.0,0.98107662]
[1736479080354,0.0011704,93638.0,93637.0,0.87677686]
[1736479080802,0.0011704,93638.0,93637.0,0.98107662]
[1736479082602,0.0011704,93638.0,93637.0,1.08537638]
[1736479082803,0.0011704,93638.0,93637.0,0.98107662]
[1736479085965,0.0011704,93638.0,93637.0,0.99511419]
[1736479086175,0.0011704,93638.0,93637.0,1.07061419]
[1736479087007,0.0011704,93638.0,93637.0,1.05657662]
[1736479087217,0.0011704,93638.0,93637.0,1.05357662]
[1736479087398,0.0011704,93638.0,93637.0,1.15787638]
[1736479087593,0.0001704,93638.0,93637.0,1.15387638]
[1736479087896,0.0011704,93638.0,93637.0,1.16187638]
[1736479092111,0.0011704,93638.0,93637.0,0.87777686]
[1736479092479,0.05634924,93656.0,93637.0,0.87777686]
[1736479092614,0.213585,93640.0,93637.0,0.87777686]
[1736479092815,0.42717,93640.0,93637.0,0.87777686]
[1736479093610,0.42717,93640.0,93637.0,0.87477686]
[1736479093916,0.42717,93640.0,93637.0,0.86677686]
[1736479094111,0.44354638,93640.0,93637.0,0.32487686]
[1736479094477,0.44154638,93640.0,93637.0,0.32487686]
[1736479094816,0.363588,93638.0,93637.0,0.32265754]
[1736479095174,0.363588,93638.0,93637.0,0.32483615]
[1736479096873,0.51024294,93638.0,93637.0,0.32483615]
[1736479097089,0.446188,93638.0,93637.0,0.32265754]
[1736479097319,0.447188,93638.0,93637.0,0.32483615]
[1736479099004,0.0836,93638.0,93637.0,0.32483615]
[1736479099423,0.297188,93638.0,93637.0,0.00223615]
[1736479099622,0.33314414,93638.0,93637.0,0.00223615]
[1736479099794,0.297188,93638.0,93637.0,5.754e-05]
[1736479100758,0.296188,93638.0,93637.0,5.754e-05]
[1736479100962,0.455188,93638.0,93637.0,0.00105754]
[1736479101429,0.447188,93638.0,93637.0,5.754e-05]
[1736479101850,0.454188,93638.0,93637.0,0.00105754]
[1736479102021,0.453188,93638.0,93637.0,0.00105754]
[1736479102260,0.455188,93638.0,93637.0,0.00105754]
[1736479103912,0.448188,93638.0,93637.0,5.754e-05]
[1736479104119,0.453188,93638.0,93637.0,0.00105754]
[1736479104328,0.45169376,93638.0,93637.0,0.00105754]
[1736479104534,0.45369376,93638.0,93637.0,0.00105754]
[1736479110263,0.45169376,93638.0,93637.0,0.00105754]
[1736479110464,0.44669376,93638.0,93637.0,5.754e-05]
[1736479110672,0.45369376,93638.0,93637.0,0.00105754]
[1736479113428,0.52665927,93638.0,93637.0,0.00105754]
[1736479113844,0.76964651,93638.0,93637.0,0.00105754]
[1736479114100,0.615342,93638.0,93637.0,0.00105754]
[1736479114700,0.613342,93638.0,93637.0,0.00105754]
[1736479115120,0.610342,93638.0,93637.0,5.754e-05]
[1736479115325,0.615342,93638.0,93637.0,0.00105754]
[1736479115549,0.453188,93638.0,93637.0,0.00105754]
[1736479115751,0.370588,93638.0,93637.0,0.00105754]
[1736479116376,0.37117297,93638.0,93637.0,0.00105754]
[1736479117883,0.370588,93638.0,93637.0,0.00105754]
[1736479120072,0.37122842,93638.0,93637.0,0.00105754]
[1736479120635,0.4359474,93638.0,93637.0,0.00105754]
[1736479121199,0.213646,93613.0,93609.0,0.3226]
[1736479121399,0.15,93635.0,93609.0,0.3226]
[1736479121673,0.15,93621.0,93610.0,0.00220438]
[1736479121900,0.15,93626.0,93611.0,0.21365]
[1736479122114,0.213618,93625.0,93611.0,0.21365]
[1736479122291,0.213618,93625.0,93612.0,0.00220419]
[1736479122671,0.001,93613.0,93610.0,0.8645]
[1736479122888,0.213618,93625.0,93611.0,0.10429976]
[1736479123098,0.15,93626.0,93612.0,0.213647]
[1736479123295,0.213595,93635.0,93613.0,0.3226]
[1736479123494,0.213595,93635.0,93614.0,0.0778]
[1736479123767,0.30907106,93652.0,93615.0,0.02008494]
[1736479123768,0.213613,93627.0,93615.0,0.02008494]
[1736479124143,0.213613,93627.0,93616.0,0.0458]
[1736479124354,0.005,93625.0,93616.0,0.0458]
[1736479124597,0.213607,93630.0,93616.0,0.0458]
[1736479124734,0.213607,93630.0,93617.0,0.10429976]
[1736479124935,0.004,93627.0,93617.0,0.10429976]
[1736479125136,0.213607,93630.0,93617.0,0.10429976]
[1736479125548,0.001,93625.0,93617.0,0.10429976]
[1736479125746,0.213607,93630.0,93617.0,0.10429976]
[1736479126149,0.002,93627.0,93617.0,0.10429976]
[1736479126398,0.002,93627.0,93616.0,0.0458]
[1736479127095,0.002,93627.0,93617.0,0.8645]
[1736479127292,0.002,93627.0,93618.0,0.8645]
[1736479127475,0.001,93630.0,93620.0,0.0778]
[1736479127683,0.001,93630.0,93624.0,0.213619]
[1736479127905,0.21359,93637.0,93622.0,0.213625]
[1736479128112,0.001,93627.0,93622.0,0.213625]
[1736479128661,0.003,93630.0,93620.0,0.0778]
[1736479128888,0.003,93630.0,93621.0,0.213627]
[1736479129103,0.427181,93637.0,93621.0,0.213627]
[1736479129279,0.001,93627.0,93621.0,0.213627]
[1736479129882,0.001,93627.0,93620.0,0.0778]
[1736479131270,0.001,93627.0,93621.0,0.00220865]
[1736479132060,0.002,93627.0,93621.0,0.00220865]
[1736479132274,0.213602,93633.0,93621.0,0.00220865]
[1736479132782,0.002,93627.0,93621.0,0.00220865]
[1736479133163,0.002,93627.0,93622.0,0.8645]
[1736479133365,0.003,93627.0,93623.0,0.00220846]
[1736479134003,0.003,93627.0,93623.0,0.21582946]
[1736479134170,0.15,93625.0,93624.0,0.8645]
[1736479134356,0.15,93625.0,93624.0,0.86670837]
[1736479135160,0.001,93627.0,93624.0,0.86670837]
[1736479135751,0.213613,93628.0,93624.0,0.86670837]
[1736479136111,0.001,93625.0,93624.0,0.86670837]
[1736479136508,0.4399489,93628.0,93624.0,0.86670837]
[1736479137952,0.4409489,93628.0,93624.0,0.86670837]
[1736479138152,0.0137229,93628.0,93624.0,0.86670837]
[1736479138362,0.002,93627.0,93625.0,0.8645]
[1736479138562,0.002,93627.0,93626.0,0.00220547]
[1736479138791,0.001,93628.0,93626.0,0.00220547]
[1736479139207,0.003,93628.0,93626.0,0.00220547]
[1736479139722,0.001,93628.0,93626.0,0.00220547]
[1736479139925,0.003,93628.0,93626.0,0.00220547]
[1736479140317,0.002,93628.0,93626.0,0.00220547]
[1736479140524,0.001,93627.0,93626.0,0.00220547]
[1736479141193,0.002,93628.0,93626.0,0.00220547]
[1736479141408,0.003,93628.0,93626.0,0.00220547]
[1736479141815,0.001,93628.0,93626.0,0.00220547]
[1736479141989,0.002,93627.0,93626.0,0.32480547]
[1736479142426,0.001,93627.0,93626.0,0.32480547]
[1736479143367,0.003,93627.0,93626.0,0.32480547]
[1736479144037,0.003,93627.0,93626.0,0.42434602]
[1736479145350,0.003,93627.0,93626.0,0.32480547]
[1736479146169,0.001,93627.0,93626.0,0.32480547]
[1736479146401,0.00083843,93627.0,93626.0,0.32480547]
[1736479146608,0.00183843,93627.0,93626.0,0.32480547]
[1736479147308,0.001,93627.0,93626.0,0.32480547]
[1736479148702,0.21361,93629.0,93626.0,0.32480547]
[1736479149141,0.001,93627.0,93626.0,0.32480547]
[1736479149315,0.21361,93629.0,93626.0,0.32480547]
[1736479149747,0.001,93627.0,93626.0,0.32480547]
[1736479151671,0.00173805,93627.0,93626.0,0.32480547]
[1736479152199,0.00073805,93627.0,93626.0,0.32480547]
[1736479152410,0.00073805,93627.0,93626.0,0.00220547]
[1736479152600,0.25842405,93627.0,93626.0,0.00220547]
[1736479152803,0.15,93626.0,93603.0,0.8645]
[1736479152982,0.213653,93610.0,93604.0,0.8645]
[1736479153184,0.213653,93610.0,93605.0,0.00221183]
[1736479155365,0.213653,93610.0,93605.0,0.00421183]
[1736479155565,0.214653,93610.0,93605.0,0.00421183]
[1736479155871,0.213653,93610.0,93605.0,0.00421183]
[1736479156206,0.214653,93610.0,93605.0,0.00821183]
[1736479156415,0.22774785,93610.0,93605.0,0.00821183]
[1736479156740,0.01309485,93610.0,93605.0,0.00421183]
[1736479157092,0.213645,93614.0,93606.0,0.8645]
[1736479157461,0.213645,93614.0,93607.0,0.00221884]
[1736479159114,0.2266436,93614.0,93607.0,0.00221884]
[1736479159322,0.2276436,93614.0,93607.0,0.00221884]
[1736479159496,0.0139986,93614.0,93609.0,0.213653]
[1736479159694,0.001,93614.0,93610.0,0.12626817]
[1736479159876,0.001,93614.0,93610.0,0.23278648]
[1736479160080,0.001,93614.0,93613.0,1.078145]
[1736479160307,0.001,93614.0,93613.0,1.28807758]
[1736479160516,0.00014698,93638.0,93636.0,0.3226]
[1736479160723,0.00014698,93638.0,93636.0,0.3984]
[1736479160930,0.00014698,93638.0,93637.0,0.00222798]
[1736479161791,0.00214698,93638.0,93637.0,0.00222798]
[1736479162190,0.00014698,93638.0,93637.0,0.00222798]
[1736479163222,0.00114698,93638.0,93637.0,0.00222798]
[1736479163619,0.00114698,93638.0,93637.0,0.09677986]
[1736479164021,0.00114698,93638.0,93637.0,0.00222798]
[1736479165345,0.00114698,93638.0,93637.0,0.00322798]
[1736479165548,0.00014698,93638.0,93637.0,0.00322798]
[1736479165906,0.00014698,93638.0,93637.0,0.00622798]
[1736479166160,0.00014698,93638.0,93637.0,0.87072798]
[1736479166365,0.00014698,93638.0,93637.0,0.97502774]
[1736479167508,0.00014698,93638.0,93637.0,0.97402774]
[1736479168384,0.00014698,93638.0,93637.0,0.97502774]
[1736479168807,0.00014698,93638.0,93637.0,0.97102774]
[1736479169243,0.00014698,93638.0,93637.0,0.86672798]
[1736479169542,0.00014698,93638.0,93637.0,0.87072798]
[1736479169867,0.00014698,93638.0,93637.0,0.86672798]
[1736479170073,0.00014698,93638.0,93637.0,0.86872798]
[1736479170368,0.00114698,93638.0,93637.0,0.87272798]
[1736479170857,0.00114698,93638.0,93637.0,0.97502774]
[1736479171068,0.00114698,93638.0,93637.0,0.97702774]
[1736479171827,0.00114698,93638.0,93637.0,0.87272798]
[1736479176652,0.00014698,93638.0,93637.0,0.86872798]
[1736479176831,0.00014698,93638.0,93637.0,0.87072798]
[1736479177037,0.00114698,93638.0,93637.0,0.87072798]
[1736479177217,0.00114698,93638.0,93637.0,0.87272798]
[1736479177414,0.00114698,93638.0,93637.0,0.97702774]
[1736479177645,0.00114698,93638.0,93637.0,0.97502774]
[1736479178032,0.00114698,93638.0,93637.0,0.97702774]
[1736479178351,0.00114698,93638.0,93637.0,1.0813275]
[1736479178894,0.00114698,93638.0,93637.0,1.0773275]
[1736479179095,0.00014698,93638.0,93637.0,0.97302774]
[1736479179294,0.00114698,93638.0,93637.0,0.97702774]
[1736479180121,0.00114698,93638.0,93637.0,1.05232774]
[1736479182193,0.00114698,93638.0,93637.0,1.07532774]
[1736479186034,0.00114698,93638.0,93637.0,1.05232774]
[1736479186519,0.00114698,93638.0,93637.0,1.1566275]
[1736479186722,0.00114698,93638.0,93637.0,1.05232774]
[1736479189696,0.00114698,93638.0,93637.0,0.94802798]
[1736479192957,0.00114698,93638.0,93637.0,0.87272798]
[1736479193760,0.00114698,93638.0,93637.0,0.87072798]
[1736479194254,0.00014698,93638.0,93637.0,0.86772798]
[1736479194697,0.00014698,93638.0,93637.0,0.86672798]
[1736479195945,0.15014698,93638.0,93637.0,0.86672798]
[1736479196395,0.15014698,93638.0,93637.0,0.8645]
[1736479196762,0.15014698,93638.0,93637.0,0.86668101]
[1736479197554,0.15214698,93638.0,93637.0,0.86668101]
[1736479197873,0.15114698,93638.0,93637.0,0.86668101]
[1736479198371,0.15414698,93638.0,93637.0,0.86668101]
[1736479198597,0.15314698,93638.0,93637.0,0.86668101]
[1736479199365,0.15314698,93638.0,93637.0,0.32478101]
[1736479199572,0.21896788,93638.0,93637.0,0.32478101]
[1736479199826,0.21596788,93638.0,93637.0,0.32478101]
[1736479200027,0.21896788,93638.0,93637.0,0.32478101]
[1736479200435,0.21596788,93638.0,93637.0,0.32478101]
[1736479200788,0.15314698,93638.0,93637.0,0.32478101]
[1736479201009,0.15014698,93638.0,93637.0,0.3226]
[1736479201217,0.15114698,93638.0,93637.0,0.32478101]
[1736479201420,0.15414698,93638.0,93637.0,0.32478101]
[1736479201638,0.15314698,93638.0,93637.0,0.32478101]
[1736479203183,0.15414698,93638.0,93637.0,0.32478101]
[1736479203670,0.15014698,93638.0,93637.0,0.32478101]
[1736479203924,0.15414698,93638.0,93637.0,0.32478101]
[1736479204429,0.15714698,93638.0,93637.0,0.32478101]
[1736479205246,0.00714698,93638.0,93637.0,0.35725911]
[1736479205668,0.00714698,93638.0,93637.0,0.32478101]
[1736479206309,0.21973498,93638.0,93637.0,0.32478101]
[1736479206710,0.21373498,93638.0,93637.0,0.3226]
[1736479207127,0.00014698,93638.0,93637.0,0.32478445]
[1736479207650,0.40010758,93638.0,93637.0,0.32478445]
[1736479207852,0.40062321,93638.0,93637.0,0.32478445]
[1736479208194,0.40062321,93638.0,93637.0,0.3226]
[1736479208399,0.40062321,93638.0,93637.0,0.32478445]
[1736479208831,0.68395621,93638.0,93637.0,0.32478445]
[1736479209043,0.66106721,93638.0,93637.0,0.32478445]
[1736479209232,0.52672321,93638.0,93637.0,0.32478445]
[1736479209673,0.52772321,93638.0,93637.0,0.32478445]
[1736479210324,0.49035061,93638.0,93637.0,0.32478445]
[1736479210536,0.49335061,93638.0,93637.0,0.32478445]
[1736479210778,0.49435061,93638.0,93637.0,0.32478445]
[1736479211206,0.50335061,93638.0,93637.0,0.32478445]
[1736479212408,0.50335061,93638.0,93637.0,0.00218445]
[1736479212659,0.60716897,93638.0,93625.0,0.3226]
[1736479212870,0.363615,93626.0,93625.0,0.3226]
[1736479215174,0.367615,93626.0,93625.0,0.3226]
[1736479215993,0.368615,93626.0,93625.0,0.3226]
[1736479216197,0.38073183,93626.0,93625.0,0.3226]
[1736479217454,0.38126201,93626.0,93625.0,0.3226]
[1736479217894,0.37726201,93626.0,93625.0,0.3226]
[1736479218316,0.38126201,93626.0,93625.0,0.3226]
[1736479218927,0.37726201,93626.0,93625.0,0.3226]
[1736479219137,0.37626201,93626.0,93625.0,0.3226]
[1736479219585,0.37726201,93626.0,93625.0,0.3226]
[1736479220019,0.37626201,93626.0,93625.0,0.3226]
[1736479220233,0.43534851,93626.0,93625.0,0.3226]
[1736479220443,1.14700751,93626.0,93625.0,0.3226]
[1736479220656,0.52134851,93626.0,93625.0,0.3226]
[1736479220872,0.37726201,93626.0,93625.0,0.3226]
[1736479221079,0.37673183,93626.0,93625.0,0.3226]
[1736479221466,0.38073183,93626.0,93625.0,0.3226]
[1736479221633,0.37673183,93626.0,93625.0,0.3226]
[1736479221873,0.37573183,93626.0,93625.0,0.3226]
[1736479222109,0.16611683,93626.0,93625.0,0.40905]
[1736479222328,0.004,93626.0,93625.0,0.3226]
[1736479222482,0.004,93626.0,93625.0,0.32473619]
[1736479222683,0.007,93626.0,93625.0,0.32473619]
[1736479222884,0.007,93626.0,93625.0,0.86663619]
[1736479223326,0.004,93626.0,93625.0,0.86663619]
[1736479223534,0.001,93626.0,93625.0,0.86663619]
[1736479224046,0.004,93626.0,93625.0,0.86663619]
[1736479224197,0.213614,93627.0,93625.0,0.86663619]
[1736479224603,0.001,93626.0,93625.0,0.86663619]
[1736479224809,0.003,93626.0,93625.0,0.86663619]
[1736479225008,0.001,93626.0,93625.0,0.86663619]
[1736479225609,0.19546967,93626.0,93625.0,0.86663619]
[1736479225814,0.19446967,93626.0,93625.0,0.86663619]
[1736479226221,0.15,93626.0,93625.0,0.86663619]
[1736479226861,0.152,93626.0,93625.0,0.86663619]
[1736479227064,0.153,93626.0,93625.0,0.86663619]
[1736479227407,0.151,93626.0,93625.0,0.86663619]
[1736479227601,0.154,93626.0,93625.0,0.86663619]
[1736479228021,0.151,93626.0,93625.0,0.86663619]
[1736479228458,0.001,93626.0,93625.0,0.86663619]
[1736479228789,0.003,93626.0,93625.0,0.86663619]
[1736479229187,0.002,93626.0,93625.0,1.03619981]
[1736479229399,0.002,93626.0,93625.0,0.94953619]
[1736479229686,0.003,93626.0,93625.0,0.94953619]
[1736479230060,0.15,93627.0,93625.0,0.94953619]
[1736479230262,0.15,93627.0,93625.0,0.86663619]
[1736479230263,0.213615,93626.0,93625.0,0.86663619]
[1736479230462,0.4243376,93626.0,93625.0,0.86663619]
[1736479230662,0.4213376,93626.0,93625.0,0.86663619]
[1736479230962,0.4213376,93626.0,93625.0,0.86763619]
[1736479231348,0.4213376,93626.0,93625.0,0.86663619]
[1736479231735,0.4243376,93626.0,93625.0,0.86663619]
[1736479232117,0.4213376,93626.0,93625.0,0.86663619]
[1736479233088,0.4213376,93626.0,93625.0,0.32473619]
[1736479233290,0.4253376,93626.0,93625.0,0.32473619]
[1736479233508,0.4343376,93626.0,93625.0,0.32473619]
[1736479233705,0.4213376,93626.0,93625.0,0.32473619]
[1736479234146,0.4343376,93626.0,93625.0,0.32473619]
[1736479234323,0.4253376,93626.0,93625.0,0.32473619]
[1736479234523,0.4213376,93626.0,93625.0,0.32473619]
[1736479234757,0.4303376,93626.0,93625.0,0.32473619]
[1736479234959,0.4343376,93626.0,93625.0,0.32473619]
[1736479236135,0.376615,93626.0,93625.0,0.32473619]
[1736479236932,0.363615,93626.0,93625.0,0.32473619]
[1736479237402,0.375615,93626.0,93625.0,0.32473619]
[1736479237576,0.366615,93626.0,93625.0,0.32473619]
[1736479237781,0.363615,93626.0,93625.0,0.32473619]
[1736479237980,0.45291903,93626.0,93625.0,0.32473619]
[1736479238314,0.45591903,93626.0,93625.0,0.32473619]
[1736479239076,0.375615,93626.0,93625.0,0.32473619]
[1736479242522,0.162,93626.0,93625.0,0.32473619]
[1736479242769,0.012,93626.0,93625.0,0.99223619]
[1736479243695,0.15,93631.0,93625.0,0.99223619]
[1736479243898,0.001,93626.0,93625.0,0.99223619]
[1736479246393,0.001,93626.0,93625.0,1.09653595]
[1736479246845,0.15,93645.0,93626.0,0.42723]
[1736479247044,0.15,93645.0,93628.0,0.213611]
[1736479247244,0.15,93645.0,93629.0,0.07916794]
[1736479247469,0.15,93645.0,93631.0,0.213604]
[1736479247668,0.15,93645.0,93636.0,0.0781]
[1736479248016,0.0116372,93646.0,93637.0,0.00212408]
[1736479248394,0.00414698,93638.0,93637.0,0.00212408]
[1736479248830,0.00014698,93638.0,93637.0,0.00212408]
[1736479249955,0.00014698,93638.0,93637.0,0.86662408]
[1736479250711,0.00014698,93638.0,93637.0,0.86862408]
[1736479251577,0.00014698,93638.0,93637.0,0.86962408]
[1736479261580,0.12213635,93644.0,93637.0,0.86962408]
[1736479261785,9.422e-05,93644.0,93638.0,0.8645]
[1736479262141,9.422e-05,93644.0,93639.0,0.00210201]
[1736479262342,0.213577,93643.0,93639.0,0.00210201]
[1736479265035,0.00109422,93644.0,93639.0,0.00210201]
[1736479265239,9.422e-05,93644.0,93639.0,0.00210201]
[1736479265627,0.001,93643.0,93639.0,0.00210201]
[1736479265799,9.422e-05,93644.0,93639.0,0.00210201]
[1736479266331,0.001,93643.0,93639.0,0.00210201]
[1736479267553,9.422e-05,93644.0,93639.0,0.00210201]
[1736479267800,9.422e-05,93644.0,93640.0,0.8645]
[1736479267999,0.213577,93643.0,93640.0,0.8645]
[1736479268207,0.213577,93643.0,93641.0,0.00210138]